bitfinex-derivatives/quotes_ETHF0:USTF0_20250524
["timestamp","ask_amount","ask_price","bid_price","bid_amount"]
[1748128108662,0.79287,2521.5,2521.4,19.0074]
[1748128109057,0.7929,2521.4,2521.3,3.2078]
[1748128109264,1.98241,2521.3,2519.6,3.30136148]
[1748128109470,3.2078,2520.5,2519.9,1.2872]
[1748128109670,0.79325,2520.3,2519.9,1.2872]
[1748128109969,1.2817,2520.2,2519.9,1.2872]
[1748128110170,2.07498,2520.2,2519.9,1.2872]
[1748128110372,1.2817,2520.2,2519.9,1.2872]
[1748128110872,3.2078,2520.0,2519.9,1.2872]
[1748128111773,0.79337,2519.9,2519.8,0.00595226]
[1748128112069,2.07507,2519.9,2519.8,0.00595226]
[1748128112262,7.07507,2519.9,2519.8,0.00595226]
[1748128112457,2.07507,2519.9,2519.8,0.00595226]
[1748128113367,1.2817,2519.9,2519.8,0.00595226]
[1748128113571,2.07507,2519.9,2519.8,0.00595226]
[1748128113766,1.2817,2519.9,2519.8,0.00595226]
[1748128113963,3.2078,2520.0,2519.8,0.00595226]
[1748128114274,0.79337,2519.9,2519.8,0.00595226]
[1748128114572,2.12577,2519.9,2519.8,0.00595226]
[1748128115275,7.12577,2519.9,2519.8,2.26e-06]
[1748128115461,2.12577,2519.9,2519.8,2.26e-06]
[1748128115664,24.97177,2519.9,2519.8,2.26e-06]
[1748128115870,19.97177,2519.9,2519.8,2.26e-06]
[1748128116074,2.12577,2519.9,2519.8,2.26e-06]
[1748128118281,0.79337,2519.9,2519.8,2.26e-06]
[1748128118874,3.2078,2520.0,2519.8,0.68850226]
[1748128119178,0.79337,2519.9,2519.8,0.68850226]
[1748128119377,0.79337,2519.9,2519.8,2.26e-06]
[1748128119780,2.14137,2519.9,2519.8,2.26e-06]
[1748128121076,0.79337,2519.9,2519.8,2.26e-06]
[1748128121679,2.17337,2519.9,2519.8,2.26e-06]
[1748128122781,0.79337,2519.9,2519.8,2.26e-06]
[1748128123279,3.2078,2520.0,2519.8,18.33010226]
[1748128123579,3.2078,2520.0,2519.8,0.66510226]
[1748128123580,0.79337,2519.9,2519.8,0.66510226]
[1748128124475,2.17337,2519.9,2519.8,2.26e-06]
[1748128124877,7.17337,2519.9,2519.8,2.26e-06]
[1748128125281,20.02637,2519.9,2519.8,2.26e-06]
[1748128125581,25.02637,2519.9,2519.8,2.26e-06]
[1748128126668,2.17337,2519.9,2519.8,2.26e-06]
[1748128127084,20.02837,2519.9,2519.8,2.26e-06]
[1748128127378,18.64837,2519.9,2519.8,1.39260226]
[1748128127578,3.2078,2520.0,2519.8,2.18599226]
[1748128127883,0.79337,2519.9,2519.8,1.39260226]
[1748128128077,3.2078,2520.0,2519.8,1.39260226]
[1748128128283,0.79334,2520.0,2519.9,0.6927]
[1748128128681,0.79334,2520.0,2519.9,2.0274]
[1748128133187,3.21375226,2520.3,2519.9,2.82075]
[1748128133386,4.59865226,2520.3,2520.0,0.79334]
[1748128133687,0.79327,2520.2,2520.1,1.3962]
[1748128134080,4.00702226,2520.3,2520.1,2.18951]
[1748128134285,4.00702226,2520.3,2520.1,1.3962]
[1748128134479,0.79327,2520.2,2520.0,18.063]
[1748128134687,4.00701226,2520.3,2520.2,0.79327]
[1748128134988,0.79328,2520.2,2520.1,0.79329]
[1748128136377,8.96641,2520.2,2519.8,2.26e-06]
[1748128136583,4.00117,2519.9,2519.8,2.26e-06]
[1748128136787,4.00117,2519.9,2519.8,0.79338226]
[1748128136788,0.79337,2519.9,2519.8,0.79338226]
[1748128136987,0.79337,2519.9,2519.8,2.26e-06]
[1748128137690,19.97947,2519.9,2519.8,2.26e-06]
[1748128138383,2.12347,2519.9,2519.8,2.26e-06]
[1748128140687,2.33615636,2520.0,2519.9,0.79337]
[1748128140884,2.33615636,2520.0,2519.8,2.26e-06]
[1748128141086,6.33729636,2520.0,2519.9,0.00941682]
[1748128141386,7.67639636,2520.0,2519.9,0.00941682]
[1748128142093,5.34024,2520.0,2519.9,0.00941682]
[1748128142794,5.34024,2520.0,2519.9,0.80278682]
[1748128143296,20.19215636,2520.1,2519.9,0.00941682]
[1748128143595,2.33615636,2520.1,2520.0,0.79334]
[1748128144094,2.33615636,2520.1,2520.0,6.49394]
[1748128144790,3.21375226,2520.3,2520.2,0.79327]
[1748128146092,0.00595226,2520.3,2520.2,0.79327]
[1748128147092,0.00595226,2520.3,2520.2,5.79327]
[1748128147690,3.2078,2520.6,2520.5,0.79318]
[1748128147889,0.79312,2520.7,2520.6,0.79315]
[1748128148085,5.19062,2520.7,2520.1,18.7044]
[1748128148290,1.3533,2520.6,2520.2,1.3804]
[1748128148491,4.00095,2520.7,2520.2,1.3804]
[1748128148794,0.79326,2520.3,2520.2,0.79326]
[1748128149095,0.79326,2520.3,2520.1,2.81609]
[1748128149295,1.3533,2520.6,2520.1,2.81608]
[1748128149489,0.79324,2520.3,2520.2,1.4157]
[1748128149892,5.19656226,2520.7,2520.2,1.4157]
[1748128149893,1.3317,2520.4,2520.2,1.4157]
[1748128150091,2.12493,2520.4,2520.3,0.79324]
[1748128150294,2.12493,2520.4,2520.2,2.20896]
[1748128150295,0.79324,2520.3,2520.2,2.20896]
[1748128150489,2.12494,2520.3,2520.2,2.20896]
[1748128150792,0.79327,2520.2,2520.1,0.6424]
[1748128150997,2.12497,2520.2,2520.1,2.85141]
[1748128151497,3.2078,2520.4,2520.3,0.79324]
[1748128152998,3.2078,2520.4,2520.2,0.79325]
[1748128153198,0.79326,2520.3,2520.2,2.19605]
[1748128153698,4.00103,2520.4,2520.3,0.79324]
[1748128153898,3.2078,2520.4,2520.3,2.19604]
[1748128154200,4.00101,2520.4,2520.3,2.19604]
[1748128154392,3.2078,2520.4,2520.3,2.19604]
[1748128154592,3.2078,2520.4,2520.3,20.25704]
[1748128156695,0.00595226,2520.7,2520.6,0.79315]
[1748128161102,5.54395636,2521.1,2521.0,0.79302]
[1748128161299,2.33615636,2521.1,2521.0,18.85202]
[1748128161901,4.00071,2521.4,2521.3,0.79293]
[1748128162603,0.79295,2521.3,2521.2,0.79294]
[1748128162804,0.79296,2521.2,2521.1,0.00595226]
[1748128163003,0.79296,2521.2,2521.1,18.06495226]
[1748128163195,0.79296,2521.2,2521.1,2.26e-06]
[1748128163397,0.79296,2521.2,2520.4,0.71865615]
[1748128163398,23.7402,2521.2,2520.4,0.71865615]
[1748128163596,0.79318,2520.5,2520.4,0.71865615]
[1748128164103,18.64518,2520.5,2520.4,0.71865615]
[1748128164706,0.79324,2520.3,2520.2,0.00595226]
[1748128165002,4.00104,2520.3,2520.2,0.00595226]
[1748128165203,9.00104,2520.3,2520.2,0.00595226]
[1748128166602,11.33719636,2520.3,2520.2,0.00595226]
[1748128166797,12.64549636,2520.3,2520.2,0.00595226]
[1748128167405,7.64549636,2520.3,2520.2,0.00595226]
[1748128167604,25.49749636,2520.3,2520.2,0.00595226]
[1748128168606,23.16134,2520.3,2520.2,0.00595226]
[1748128169406,5.30934,2520.3,2520.2,0.00595226]
[1748128169600,23.16234,2520.3,2520.2,0.00595226]
[1748128170000,5.30934,2520.3,2520.2,0.00595226]
[1748128170397,23.16234,2520.3,2520.2,0.00595226]
[1748128170603,4.5161,2520.3,2520.2,0.79922226]
[1748128170802,22.3691,2520.3,2520.2,0.79922226]
[1748128171410,21.0608,2520.3,2520.2,2.19282226]
[1748128171700,4.00104,2520.3,2520.2,1.39955226]
[1748128171901,5.28444,2520.3,2520.2,1.39955226]
[1748128172101,3.2078,2520.3,2520.2,2.19282226]
[1748128172702,5.54395636,2520.6,2520.3,0.79321]
[1748128172907,5.54395636,2520.6,2520.5,0.79318]
[1748128173398,2.33615636,2520.6,2520.5,0.79318]
[1748128173710,0.79324,2520.3,2520.2,0.00595226]
[1748128173907,4.00104,2520.3,2520.2,0.00595226]
[1748128175900,2.33615636,2520.6,2520.2,0.00595226]
[1748128176206,2.33615636,2520.6,2520.5,0.79318]
[1748128176404,2.33615636,2520.6,2520.5,4.00098]
[1748128176899,2.33615636,2520.6,2520.5,0.79318]
[1748128177100,0.79312,2520.7,2520.6,0.79313]
[1748128177304,4.6048,2520.9,2520.6,18.001]
[1748128177601,0.79312,2520.7,2520.6,18.001]
[1748128177803,3.2078,2520.9,2520.8,0.79309]
[1748128178004,2.33615636,2521.3,2521.2,0.79296]
[1748128178202,3.12909636,2521.3,2521.0,18.001]
[1748128178403,3.12909636,2521.3,2521.2,0.79296]
[1748128178606,1.26845636,2521.3,2521.2,4.00076]
[1748128178906,0.79288,2521.5,2521.2,18.6727]
[1748128179103,0.00595226,2521.6,2521.3,1.3795]
[1748128179303,0.7929,2521.4,2521.3,2.17242]
[1748128179498,0.7929,2521.4,2521.3,1.3795]
[1748128180109,0.7929,2521.4,2521.3,2.17243]
[1748128180407,1.3313,2521.5,2521.0,0.7093]
[1748128180613,4.5391,2521.3,2520.8,17.999]
[1748128180907,0.79305,2520.9,2520.8,18.79208]
[1748128181103,0.79305,2520.9,2520.8,17.999]
[1748128181295,2.12435,2520.9,2520.8,17.999]
[1748128181502,2.12435,2520.9,2520.8,18.79209]
[1748128181898,1.3313,2520.9,2520.8,18.79209]
[1748128182102,2.12435,2520.9,2520.8,18.79209]
[1748128182305,1.3313,2520.9,2520.8,18.79209]
[1748128183118,4.00084,2521.0,2520.9,0.79305]
[1748128183309,4.00084,2521.0,2520.9,1.3333]
[1748128183609,0.79305,2520.9,2520.8,17.999]
[1748128183805,3.28176,2520.9,2520.3,17.998]
[1748128184007,0.79318,2520.6,2520.5,0.79318]
[1748128184706,2.09228,2520.6,2520.5,0.79318]
[1748128185009,4.00092,2520.7,2520.6,0.79315]
[1748128185813,4.00092,2520.7,2520.5,0.79316]
[1748128186012,4.00092,2520.7,2520.6,1.3923]
[1748128186607,3.2078,2520.7,2520.6,2.18545]
[1748128189312,4.00092,2520.7,2520.6,1.3923]
[1748128189609,5.38732,2520.7,2520.6,1.3923]
[1748128189802,5.38732,2520.7,2520.6,2.18545]
[1748128190006,4.00092,2520.7,2520.6,2.18545]
[1748128191713,3.2078,2520.7,2520.6,2.18545]
[1748128191908,3.2078,2520.7,2520.6,7.18545]
[1748128192407,3.2078,2521.2,2521.1,0.79299]
[1748128193011,3.2078,2521.5,2521.4,0.7929]
[1748128193317,3.2078,2521.5,2521.4,18.7909]
[1748128193909,3.2078,2521.5,2521.4,20.1026]
[1748128194110,0.7929,2521.4,2521.3,18.6082]
[1748128194314,3.2078,2521.5,2521.3,18.6082]
[1748128194515,0.7929,2521.4,2521.3,19.40112]
[1748128194715,3.2078,2521.5,2521.3,19.40112]
[1748128194911,3.2078,2521.5,2520.7,0.6742]
[1748128195218,0.79294,2521.3,2520.8,20.58892]
[1748128195423,0.79294,2521.3,2520.8,21.93392]
[1748128195917,4.00078,2521.2,2520.8,19.9512]
[1748128196419,3.2078,2521.5,2520.9,1.98264]
[1748128196608,4.00069,2521.5,2521.3,0.7929]
[1748128196808,21.84969,2521.5,2521.4,2.1379]
[1748128197308,21.84967,2521.5,2521.4,2.1379]
[1748128197918,21.84967,2521.5,2521.4,1.345]
[1748128198820,21.84967,2521.5,2521.4,2.1379]
[1748128199213,21.84967,2521.5,2521.4,1.345]
[1748128199412,0.79292,2521.4,2521.3,0.79292]
[1748128199614,2.18612,2521.4,2521.3,0.79292]
[1748128199918,1.3932,2521.4,2521.3,0.79292]
[1748128200312,2.1861,2521.4,2521.3,0.79292]
[1748128201521,1.3932,2521.4,2521.3,0.79292]
[1748128201814,21.84769,2521.5,2521.4,0.7929]
[1748128203418,3.2078,2521.5,2521.4,0.7929]
[1748128203617,1.42425226,2521.6,2521.5,0.79287]
[1748128204419,0.00595226,2521.6,2521.5,0.79287]
[1748128205216,0.00595226,2521.6,2521.5,2.19047]
[1748128205417,0.00595226,2521.6,2521.5,20.10747]
[1748128205714,2.26e-06,2521.6,2521.5,25.10747]
[1748128205911,3.11865977,2522.2,2522.1,0.79268]
[1748128206119,3.90101696,2522.7,2522.6,0.79252]
[1748128206327,3.90101696,2522.7,2522.6,18.70952]
[1748128206625,3.90101696,2522.7,2522.6,23.70952]
[1748128207822,0.00595226,2522.9,2522.8,0.79246]
[1748128210530,0.00595226,2522.9,2522.4,1.98741226]
[1748128210531,3.2078,2522.6,2520.3,7.17393]
[1748128210829,3.2078,2521.5,2520.7,1.98273]
[1748128211125,0.7002,2522.5,2521.7,0.7928]
[1748128211126,3.2078,2521.8,2521.7,0.7928]
[1748128211327,3.2078,2521.8,2521.7,18.7048]
[1748128211524,3.2078,2522.1,2522.0,0.79271]
[1748128211721,3.2078,2522.1,2521.7,17.912]
[1748128212024,17.842,2522.3,2521.7,17.912]
[1748128212025,3.2078,2521.8,2521.7,17.912]
[1748128212225,3.2078,2521.8,2521.7,18.7048]
[1748128212426,4.00049,2522.1,2521.7,18.7048]
[1748128212620,4.00057,2521.8,2521.7,17.912]
[1748128212931,3.2078,2521.8,2521.7,17.912]
[1748128213133,4.00057,2521.8,2521.5,0.00595226]
[1748128213326,4.00057,2521.8,2521.7,17.912]
[1748128213629,3.2078,2521.8,2521.7,17.912]
[1748128214224,3.2078,2521.8,2521.5,0.00595226]
[1748128214432,0.79283,2521.6,2521.5,17.91795226]
[1748128215223,1.4079,2521.7,2521.5,17.91795226]
[1748128215428,2.20071,2521.7,2521.5,18.71080226]
[1748128215721,0.79283,2521.6,2521.5,17.91795226]
[1748128215921,2.20073,2521.6,2521.5,17.91795226]
[1748128220130,3.2078,2521.8,2521.5,17.91795226]
[1748128220331,3.2078,2521.8,2521.7,0.7928]
[1748128220635,4.00057,2521.8,2521.6,2.21319365]
[1748128220829,0.7928,2521.7,2521.6,1.42037365]
[1748128223833,0.7928,2521.7,2521.6,19.59937365]
[1748128225937,0.7928,2521.7,2521.6,20.39220365]
[1748128226233,0.7928,2521.7,2521.6,19.59937365]
[1748128226427,0.7928,2521.7,2521.6,18.18527365]
[1748128226628,2.1134,2521.7,2521.6,18.18527365]
[1748128227230,3.2078,2521.8,2521.7,0.7928]
[1748128227434,3.2078,2522.1,2522.0,0.79271]
[1748128227639,2.35070362,2522.4,2522.3,0.79261]
[1748128227837,3.14328362,2522.4,2522.3,0.79261]
[1748128228836,2.35070362,2522.4,2522.3,2.18511]
[1748128229338,3.2078,2522.5,2522.4,0.79258]
[1748128229539,3.2078,2522.5,2522.4,20.36408]
[1748128229836,4.00035,2522.5,2522.4,20.36408]
[1748128230935,4.00035,2522.5,2522.4,1.3925]
[1748128231143,4.00035,2522.5,2522.4,19.5695]
[1748128232341,4.00035,2522.5,2522.4,1.3925]
[1748128232635,4.00035,2522.5,2522.4,19.5695]
[1748128233242,3.2078,2522.5,2522.4,20.36208]
[1748128233940,4.00035,2522.5,2522.4,19.5695]
[1748128234134,4.00035,2522.5,2522.4,20.36208]
[1748128234334,4.00035,2522.5,2522.4,18.177]
[1748128235936,4.00035,2522.5,2522.4,19.4717]
[1748128236539,0.79261,2522.3,2522.2,0.6541]
[1748128236736,0.79261,2522.3,2522.2,19.62175]
[1748128237542,0.79265,2522.2,2522.1,1.2947]
[1748128237840,4.00045,2522.2,2522.1,19.4697]
[1748128238240,4.00045,2522.2,2522.1,20.26238]
[1748128238441,4.00045,2522.2,2522.1,19.4697]
[1748128238741,4.00045,2522.2,2522.1,18.175]
[1748128239037,0.79277,2521.8,2521.7,18.175]
[1748128239243,4.00057,2521.8,2521.7,18.175]
[1748128239429,3.2078,2521.8,2521.7,18.9678]
[1748128240043,4.00057,2521.8,2521.7,18.175]
[1748128241738,4.00057,2521.8,2521.7,18.9678]
[1748128242245,3.2078,2521.8,2521.7,18.9678]
[1748128242833,3.2078,2522.1,2522.0,0.79271]
[1748128243739,3.2078,2522.1,2522.0,2.19041]
[1748128244145,21.0488,2522.4,2522.0,1.3977]
[1748128244348,0.79262,2522.3,2522.2,0.79262]
[1748128244642,0.79262,2522.3,2522.2,2.19032]
[1748128244946,4.0004,2522.4,2522.3,0.79262]
[1748128245140,4.0004,2522.4,2522.3,1.3977]
[1748128246442,0.79269,2522.1,2522.0,0.79269]
[1748128246643,0.7928,2521.7,2521.6,0.00627365]
[1748128246850,18.6328,2521.7,2521.6,3.65e-06]
[1748128247144,0.79284,2521.6,2521.5,0.95782747]
[1748128247337,2.14654,2521.6,2521.5,0.95782747]
[1748128247538,0.79299,2521.1,2521.0,18.96902]
[1748128247746,4.00079,2521.1,2521.0,20.26082]
[1748128248342,3.2078,2521.1,2521.0,20.26082]
[1748128248543,0.00595226,2521.3,2521.2,0.79296]
[1748128248948,0.79299,2521.1,2521.0,19.4678]
[1748128249146,4.00077,2521.2,2521.1,0.79299]
[1748128249547,3.2078,2521.2,2521.1,18.97099]
[1748128250447,3.2078,2521.7,2521.6,0.79284]
[1748128250744,3.2078,2521.8,2521.6,18.178]
[1748128250949,4.00058,2521.8,2521.7,0.7928]
[1748128251147,4.00058,2521.8,2521.7,2.0875]
[1748128251346,4.00058,2521.8,2521.7,1.2947]
[1748128251545,8.2078,2521.8,2520.8,3.21375226]
[1748128251739,0.79306,2520.9,2520.8,0.00595226]
[1748128252239,3.2078,2521.1,2520.8,0.00595226]
[1748128252446,2.19094,2521.3,2521.1,0.79298]
[1748128252752,2.19094,2521.3,2521.2,1.3111]
[1748128253050,1.398,2521.3,2521.2,1.3111]
[1748128253253,2.19093,2521.3,2521.2,1.3111]
[1748128253647,0.79293,2521.3,2521.2,1.3111]
[1748128255249,0.79296,2521.2,2521.1,18.178]
[1748128255442,2.15206,2521.2,2521.1,18.97099]
[1748128255644,3.2078,2521.3,2521.2,0.79296]
[1748128255950,3.2078,2521.3,2521.2,2.18256]
[1748128256947,4.00065,2521.6,2521.4,0.79287]
[1748128257152,3.2078,2521.6,2521.5,20.10247]
[1748128257352,4.00063,2521.6,2521.5,19.3096]
[1748128257655,3.2078,2521.6,2521.5,20.10247]
[1748128257947,3.2078,2521.9,2521.5,19.3096]
[1748128258157,0.00595226,2522.0,2521.9,0.79274]
[1748128258356,0.79866226,2522.0,2521.9,17.92]
[1748128258651,4.00646226,2522.0,2521.9,17.92]
[1748128259263,3.21375226,2522.0,2521.9,18.71274]
[1748128260656,0.00595226,2522.0,2521.9,26.92054]
[1748128261357,0.00595226,2522.0,2521.9,21.92054]
[1748128262349,0.00595226,2522.0,2521.9,18.71274]
[1748128262749,0.00595226,2522.0,2521.7,2.0731]
[1748128262959,0.00595226,2522.0,2521.8,1.3539]
[1748128263151,0.7928,2521.7,2521.6,18.5713]
[1748128263351,0.7928,2521.7,2521.6,17.918]
[1748128264458,2.1489,2521.7,2521.6,17.918]
[1748128265063,0.79287,2521.5,2521.4,39.971]
[1748128265259,4.00067,2521.5,2521.4,57.888]
[1748128265559,3.2078,2521.5,2521.4,58.6809]
[1748128266556,2.14891,2521.7,2521.4,57.888]
[1748128266857,3.2078,2521.9,2521.5,4.5145]
[1748128267058,3.2078,2521.9,2521.8,0.79277]
[1748128267255,0.00595226,2522.0,2521.9,0.79274]
[1748128267561,0.00595226,2522.0,2521.9,2.09944]
[1748128267861,0.79866226,2522.0,2521.9,2.09944]
[1748128268160,0.79866226,2522.0,2521.9,1.3067]
[1748128268459,0.00595226,2522.0,2521.9,2.09944]
[1748128270058,0.79866226,2522.0,2521.9,1.3067]
[1748128270366,0.79274,2521.9,2521.8,17.918]
[1748128270563,4.00054,2521.9,2521.8,17.918]
[1748128270857,4.00054,2521.9,2521.8,18.71077]
[1748128271058,3.2078,2521.9,2521.8,18.71077]
[1748128271254,4.00054,2521.9,2521.8,18.71077]
[1748128271559,4.00054,2521.9,2521.8,17.918]
[1748128272060,4.00054,2521.9,2521.8,18.71077]
[1748128272263,3.2078,2521.9,2521.8,18.71077]
[1748128273859,4.00054,2521.9,2521.8,18.71077]
[1748128274055,3.2078,2521.9,2521.8,18.71077]
[1748128274260,0.00595226,2522.0,2521.9,0.79274]
[1748128274460,0.00595226,2522.0,2521.9,2.90574]
[1748128274662,0.00595226,2522.0,2521.9,7.90574]
[1748128275967,2.11933,2522.6,2522.5,0.79255]
[1748128276166,2.11933,2522.6,2522.5,18.70955]
[1748128276662,3.2078,2522.7,2522.6,0.79252]
[1748128276967,3.2078,2522.7,2522.6,2.21022]
[1748128279765,1.3268,2522.8,2522.7,0.79249]
[1748128280674,0.00595226,2522.9,2522.8,0.79246]
[1748128281062,2.26e-06,2522.9,2522.8,5.79246]
[1748128281367,2.26e-06,2522.9,2522.8,2.11316]
[1748128283365,2.26e-06,2522.9,2522.8,7.11316]
[1748128284162,2.35070362,2524.0,2523.9,0.79211]
[1748128284370,6.94440362,2524.2,2524.1,0.79205]
[1748128284563,2.35070362,2524.2,2524.1,0.79205]
[1748128285770,0.00595226,2524.4,2524.3,0.79199]
[1748128286164,0.00595226,2524.4,2523.9,57.61095226]
[1748128286360,3.2078,2524.2,2524.1,0.79205]
[1748128286669,1.30985226,2524.4,2523.9,57.61095226]
[1748128286670,1.30985226,2524.4,2524.3,0.79199]
[1748128286867,1.30985226,2524.4,2524.3,18.44399]
[1748128287562,1.30985226,2524.4,2524.3,17.649]
[1748128287762,1.30985226,2524.4,2524.2,17.649]
[1748128287963,1.47619,2524.3,2524.2,17.649]
[1748128288666,0.6842,2524.3,2523.9,43.16675226]
[1748128288864,4.5117,2524.2,2523.9,57.60795226]
[1748128289061,5.2112,2524.2,2523.9,57.60795226]
[1748128289862,0.79206,2524.1,2524.0,0.79208]
[1748128290070,1.3358,2524.1,2524.0,0.79208]
[1748128290270,1.3358,2524.1,2523.9,58.40004226]
[1748128290471,2.12787,2524.1,2524.0,0.79208]
[1748128291571,0.79208,2524.0,2523.9,58.40004226]
[1748128291774,2.12788,2524.0,2523.9,58.40004226]
[1748128292072,0.79208,2524.0,2523.9,58.40004226]
[1748128292269,3.2078,2524.2,2524.1,0.79205]
[1748128292475,2.0574,2524.3,2524.0,1.3582]
[1748128292668,0.79205,2524.1,2524.0,0.79206]
[1748128292972,0.79205,2524.1,2524.0,18.43906]
[1748128293173,2.16525,2524.1,2524.0,18.43906]
[1748128293875,1.3732,2524.1,2524.0,18.43906]
[1748128294174,2.16525,2524.1,2524.0,18.43906]
[1748128295073,3.2078,2524.2,2524.1,0.79205]
[1748128295277,3.2078,2524.2,2524.1,2.11045]
[1748128298375,0.00595226,2524.4,2524.3,0.79199]
[1748128299478,0.00595226,2524.4,2524.3,17.643]
[1748128299677,0.79793226,2524.4,2524.2,17.643]
[1748128299980,1.3397,2524.3,2524.2,18.435]
[1748128300173,1.3397,2524.3,2524.2,17.643]
[1748128300377,1.3397,2524.3,2524.2,18.43502]
[1748128300976,4.5475,2524.3,2524.2,18.43502]
[1748128301377,0.79202,2524.2,2524.1,0.79202]
[1748128301580,1.3425,2524.2,2524.1,0.79202]
[1748128302269,2.13452,2524.2,2524.1,0.79202]
[1748128302471,2.82152,2524.2,2524.1,0.79202]
[1748128303282,2.0295,2524.2,2524.1,0.79202]
[1748128303674,2.82152,2524.2,2524.1,0.79202]
[1748128303878,2.0295,2524.2,2524.1,0.79202]
[1748128305275,1.3425,2524.2,2524.1,0.79202]
[1748128305585,1.3425,2524.2,2524.1,2.1283472]
[1748128306782,21.0338,2524.3,2524.2,0.79202]
[1748128307286,3.2078,2524.3,2524.2,0.79202]
[1748128307483,19.17425226,2524.4,2524.3,0.79199]
[1748128307683,1.34825226,2524.4,2524.3,0.79199]
[1748128308084,0.00595226,2524.4,2524.3,0.79199]
[1748128308778,2.26e-06,2524.4,2524.3,8.99979]
[1748128309686,2.26e-06,2524.4,2524.3,0.79199]
[1748128309983,2.26e-06,2524.4,2524.3,3.99979]
[1748128313286,2.26e-06,2524.4,2524.3,5.36679]
[1748128315582,2.26e-06,2524.4,2524.3,19.64999]
[1748128316787,2.26e-06,2524.4,2524.3,27.85779]
[1748128317688,2.26e-06,2524.4,2524.3,28.81503761]
[1748128318384,2.26e-06,2524.4,2524.3,29.29106703]
[1748128320287,2.26e-06,2524.4,2524.3,6.80006703]
[1748128320492,2.26e-06,2524.4,2524.3,24.29006703]
[1748128321795,2.26e-06,2524.4,2524.3,23.57429407]
[1748128322095,3.2078,2525.5,2525.3,0.79168]
[1748128322297,3.2078,2525.5,2525.3,18.28068]
[1748128322491,1.45590362,2525.4,2525.3,18.28068]
[1748128322700,0.58490362,2525.4,2525.3,18.28068]
[1748128322995,3.2078,2525.5,2525.4,0.79164]
[1748128323197,3.2078,2525.5,2525.4,2.09714]
[1748128323390,0.70093977,2525.6,2525.5,0.79161]
[1748128323591,9.77e-06,2525.6,2525.5,2.09711]
[1748128323793,3.12440164,2526.2,2526.1,0.79143]
[1748128323991,0.6768,2526.4,2526.3,0.79136]
[1748128325191,1.3088,2526.5,2526.4,0.79133]
[1748128326602,0.00380479,2526.6,2526.5,0.7913]
[1748128326803,0.00380479,2526.6,2526.5,18.2783]
[1748128327494,1.30040479,2526.6,2526.5,18.2783]
[1748128327699,2.09168479,2526.6,2526.5,17.484]
[1748128327893,1.30040479,2526.6,2526.4,0.79133]
[1748128328201,1.30040479,2526.6,2526.5,17.484]
[1748128328402,7.09167479,2526.6,2526.3,0.79134]
[1748128328596,3.9991,2526.5,2526.3,0.79134]
[1748128328797,1.3379,2526.4,2526.3,0.79134]
[1748128329398,6.3379,2526.4,2526.3,0.79134]
[1748128329600,1.3379,2526.4,2526.3,0.79134]
[1748128329901,7.12925,2526.4,2526.2,17.484]
[1748128330104,1.3379,2526.4,2526.3,0.79136]
[1748128330300,2.12923,2526.4,2526.3,0.79136]
[1748128330800,1.3379,2526.4,2526.3,0.79136]
[1748128332503,2.12923,2526.4,2526.3,0.79136]
[1748128333004,6.3379,2526.4,2525.8,3.2078]
[1748128333193,3.2078,2526.2,2526.1,0.79142]
[1748128333501,0.79143,2526.2,2526.1,0.79141]
[1748128333692,2.76273,2526.2,2526.1,0.79141]
[1748128333896,2.76273,2526.2,2526.1,18.27341]
[1748128334402,2.76273,2526.2,2526.1,0.79141]
[1748128334601,5.97053,2526.2,2526.1,18.27341]
[1748128334997,5.97053,2526.2,2526.1,0.79141]
[1748128335205,5.97053,2526.2,2526.1,18.27341]
[1748128337703,5.97053,2526.2,2526.1,17.482]
[1748128338005,10.97053,2526.2,2526.1,17.482]
[1748128338403,10.97053,2526.2,2526.1,18.27343]
[1748128340208,7.76273,2526.2,2526.1,18.27343]
[1748128340712,3.2078,2526.5,2526.4,0.79133]
[1748128340909,22.4028,2526.5,2526.4,0.79133]
[1748128342309,23.1941,2526.5,2526.4,0.79133]
[1748128342610,5.3801,2526.5,2526.4,0.79133]
[1748128344617,3.2078,2526.5,2526.4,0.79133]
[1748128345308,1.45968479,2526.6,2526.5,0.7913]
[1748128345603,20.66638479,2526.6,2526.5,0.7913]
[1748128345909,0.79508479,2526.6,2526.5,0.7913]
[1748128346110,0.00380479,2526.6,2526.5,0.7913]
[1748128346306,2.18977479,2526.6,2526.5,0.7913]
[1748128346708,1.39850479,2526.6,2526.5,0.7913]
[1748128347012,2.18977479,2526.6,2526.5,0.7913]
[1748128347513,0.00380479,2526.6,2526.5,18.2653]
[1748128348504,0.00380479,2526.6,2526.5,19.6624]
[1748128349309,18.117,2527.1,2527.0,0.79114]
[1748128349310,18.116,2527.1,2527.0,0.79114]
[1748128350209,18.116,2527.1,2527.0,2.13064]
[1748128350712,0.305,2527.1,2527.0,2.13064]
[1748128351008,5.56084996,2527.4,2527.3,0.79105]
[1748128351213,0.79111,2527.2,2527.1,0.7911]
[1748128351409,0.79111,2527.1,2527.0,1.3395]
[1748128351605,0.79117,2526.9,2526.8,0.00593977]
[1748128351805,23.60117,2526.9,2526.8,0.00593977]
[1748128352010,18.60117,2526.9,2526.8,0.00593977]
[1748128352404,19.96727,2526.9,2526.8,0.00593977]
[1748128354414,2.35304996,2527.0,2526.9,0.79117]
[1748128354919,2.35304996,2527.0,2526.9,2.09777]
[1748128356019,0.79109,2527.2,2527.1,0.79111]
[1748128356821,0.79112,2527.1,2527.0,0.79112]
[1748128357220,0.7911,2527.2,2527.1,0.7911]
[1748128357519,0.79111,2527.1,2527.0,0.79111]
[1748128357719,0.79111,2527.1,2526.8,21.38223977]
[1748128357720,0.79115,2527.0,2526.9,0.79115]
[1748128358116,0.79117,2526.9,2526.8,18.17343977]
[1748128358821,0.79117,2526.9,2526.8,18.96464977]
[1748128359010,0.79117,2526.9,2526.8,18.17343977]